[Event "DFMM-LV 2023"]
[Site "Braunfels"]
[Date "2023.06.09"]
[Round "1.6"]
[White "Trunz, Michelle"]
[Black "Spiel, Marianne"]
[Result "1-0"]
[Annotator "TA"]
[ECO "D52"]
[WhiteElo "2010"]
[BlackElo "1840"]
[PlyCount "33"]
[EventDate "2023.06.09"]
[EventType "team-tourn"]
[EventCountry "GER"]
[SourceTitle "playchess.com"]
[Source "ChessBase"]
[SourceQuality "1"]
[TimeControl "40/5400+30:1800+30"]

{[%evp 17,33,38,45,23,54,47,66,18,3,0,71,72,84,84,110,121,508,500]} 1. d4 {[%emt 0:00:01]} Nf6 {[%emt 0:00:10]} 2. c4 {[%emt 0:00:04]} e6 {[%emt 0:00:08]} 3. Nc3 {[%emt 0:00:08]} d5 {[%emt 0:00:44]} 4. Bg5 {[%emt 0:00:22]} c6 {[%emt 0:00:17]} 5. e3 {[%emt 0:00:36]} Nbd7 {[%emt 0:02:45]} 6. Nf3 {[%emt 0:00:25]} Qa5 {[%emt 0:05:42]} 7. Nd2 {[%emt 0:00:10]} dxc4 {[%emt 0:02:32]} 8. Bxf6 {[%emt 0:00:14]} Nxf6 {[%emt 0:01:24]} 9. Nxc4 {[%emt 0:00:04]} Qd8 {[%emt 0:02:04]} 10. Bd3 {[%emt 0:03:32] [#] D52: Queen's Gambit Declined: Cambridge Springs Variation.} a6 $146 {[%emt 0:06:42]} ({Predecessor:} 10... b6 11. O-O Bb7 12. Ne4 Be7 13. Ne5 O-O 14. Qc2 h6 15. Nxc6 Qd7 16. Nxe7+ Qxe7 17. Nxf6+ Qxf6 {1-0 Palencia Morales,W (2260)-Joubert,D (1566) Titled Tuesday intern op 25th Oct Late blitz 2022 (8)}) 11. O-O {[%emt 0:01:04]} c5 {[%emt 0:01:56]} 12. Ne5 {[%emt 0:03:32]} (12. Ne4 $14 {was preferrable.}) 12... cxd4 $11 {[%emt 0:08:18]} 13. Qa4+ {[%emt 0:02:22]} Bd7 {[%emt 0:03:46]} (13... Nd7 $1 $11 {keeps the balance.} 14. exd4 (14. Qxd4 Nxe5 {[%mdl 64] Remove Defender, Deflection} 15. Qxe5 Qxd3 $11) 14... Be7) 14. Qxd4 $16 {[%emt 0:01:14]} Be7 {[%emt 0:02:53]} 15. Rfd1 {[%emt 0:04:33] White has more active pieces. The black rooks are badly placed.} O-O {[%emt 0:06:05]} 16. Nxd7 {[%emt 0:01:19]} Qxd7 {[%emt 0:02:52][%mdl 8192] [#]} (16... Nxd7 $16 17. Qxd7 Qxd7 18. Bxh7+ {[%mdl 64] Discovered Attack} Kxh7 19. Rxd7 Bf6) 17. Bxh7+ $1 {[%emt 0:02:20][%mdl 576] Decoy.   Weighted Error Value: White=0.11 (very precise) /Black=0.85} 1-0

[Event "DFMM-LV 2023"]
[Site "Braunfels"]
[Date "2023.06.09"]
[Round "1.7"]
[White "Braeuer, Vanessa"]
[Black "Trunz, Elena"]
[Result "0-1"]
[Annotator "TA"]
[ECO "B86"]
[WhiteElo "1819"]
[BlackElo "2122"]
[PlyCount "82"]
[EventDate "2023.06.09"]
[EventType "team-tourn"]
[EventCountry "GER"]
[SourceTitle "playchess.com"]
[Source "ChessBase"]
[SourceQuality "1"]
[TimeControl "40/5400+30:1800+30"]

{[%evp 12,81,0,11,39,34,42,31,39,33,35,3,0,6,0,-55,0,-24,-14,-35,-45,-60,-45,-63,-64,-65,-41,-64,-69,-122,-29,-84,-79,-64,-45,-52,-11,0,-25,-100,-96,-131,-71,-124,-145,-361,-357,-665,-664,-664,-651,-659,-633,-634,-654,-664,-639,-687,-683,-667,-671,-1292,-1113,-1677,-1412,-29983,-29979,-3426,-3366,-29991,-29991,-29999]} 1. e4 {[%emt 0:00:01]} c5 {[%emt 0:00:05]} 2. Nc3 {[%emt 0:00:16]} d6 {[%emt 0:00:10]} 3. Bc4 {[%emt 0:00:22]} e6 {[%emt 0:00:56]} 4. Nf3 {[%emt 0:00:18]} a6 {[%emt 0:00:52]} 5. a4 {[%emt 0:00:06]} Nf6 {[%emt 0:00:57]} 6. d4 {[%emt 0:00:44]} cxd4 {[%emt 0:00:11]} 7. Nxd4 {[%emt 0:00:14]} Nbd7 {[%emt 0:02:48] Recently 7...Nc6 got a lot of attention. B86: Sicilian Scheveningen/Najdorf: 6 Bc4, without early ...b5.} 8. O-O {[%emt 0:01:57][%cal Oc4e6] Strongly threatening Bxe6!} Nc5 {[%emt 0:01:16]} 9. Re1 {[%emt 0:02:01]} Qc7 {[%emt 0:02:39] White is slightly better.} 10. Ba2 {[%emt 0:03:37]} Be7 {[%emt 0:01:28] [#]} 11. b4 $146 {[%emt 0:00:38]} (11. Qf3 {looks sharper.} O-O 12. Qg3 Bd7 13. Bh6) ({Predecessor:} 11. f4 O-O 12. f5 e5 13. Nf3 b6 14. Nd5 Nxd5 15. Bxd5 Bb7 16. Bg5 Bxg5 17. Nxg5 {1-0 Yankelevich,L (2004)-Walter,K (1749) GER-ch Net final U14 blitz 2011 (2)}) 11... Ncd7 {[%emt 0:06:57][%cal Bc5d7,Bd7e5,Be5g6][%mdl 32]} 12. Bb2 {[%emt 0:00:40][%cal Oa2e6] White wants to play Bxe6!} Ne5 {[%emt 0:02:19]} 13. Qe2 {[%emt 0:02:09]} (13. a5 $11) 13... O-O {[%emt 0:02:56]} (13... Qb6 $15 14. Red1 Qxb4) 14. b5 {[%emt 0:02:46]} Bd7 {[%emt 0:02:07]} 15. Kh1 {[%emt 0:02:42]} Ng6 {[%emt 0:04:05]} 16. Qd2 {[%emt 0:07:13]} Qc5 {[%emt 0:12:22]} 17. Nb3 {[%emt 0:10:38]} Qh5 {[%emt 0:03:46][%cal Ra6b5]} 18. f3 {[%emt 0:07:23]} Rac8 {[%emt 0:17:28]} 19. bxa6 {[%emt 0:05:53]} bxa6 {[%emt 0:00:19]} 20. Ne2 {[%emt 0:02:05] [#]} (20. Nc1 $15) 20... Bxa4 {[%emt 0:05:49]} (20... d5 $1 $17 21. e5 Nxe5) 21. Ng3 {[%emt 0:01:34]} (21. Nbd4 $11 {keeps the balance.}) 21... Qh4 {[%emt 0:02:12]} 22. Nd4 {[%emt 0:02:39][%cal Oa2e6]} Bd7 {[%emt 0:03:01] Black is more active.} 23. Bb3 {[%emt 0:00:31]} Nh5 {[%emt 0:02:48]} 24. Nxh5 {[%emt 0:00:29]} Qxh5 {[%emt 0:00:16]} 25. Ne2 {[%emt 0:03:22]} (25. Rxa6 $11 Bh4 26. Rea1) 25... Bb5 $17 {[%emt 0:05:40]} 26. Ra5 {[%emt 0:02:26][%cal Oc2c4] [#]} d5 {[%emt 0:05:37]} 27. Ng3 {[%emt 0:04:33]} (27. exd5 $142 exd5 28. Ng3) 27... Qh4 {[%emt 0:01:25]} 28. exd5 $2 {[%emt 0:00:35] White does not recover from this.} (28. Raa1 $17) 28... Bb4 $19 {[%emt 0:01:11][%cal Be7b4,Bb4a5,Ba5c7,Bc7f4,Bf4c1][%mdl 96] Skewer, Double Attack} 29. c3 $2 {[%emt 0:02:59]} (29. Qc1 Bxa5 30. Re4) 29... Bxa5 {[%emt 0:00:25]} 30. dxe6 {[%emt 0:00:19]} Bc7 {[%emt 0:05:59]} 31. exf7+ {[%emt 0:00:58]} Kh8 {[%emt 0:00:11]} 32. Re4 {[%emt 0:00:44]} Bf4 {[%emt 0:01:34]} 33. Qd4 {[%emt 0:02:10]} Qh6 {[%emt 0:03:31]} 34. Bc1 {[%emt 0:04:27]} Bxc1 {[%emt 0:01:50]} 35. Nf5 {[%emt 0:00:11] [#]} Rcd8 $1 {[%emt 0:00:37]} 36. Qb6 {[%emt 0:10:05]} (36. Qxd8 Rxd8) 36... Qg5 {[%emt 0:00:20]} 37. g4 {[%emt 0:02:03]} Bd3 {[%emt 0:01:06]} 38. h4 {[%emt 0:06:42]} Nxh4 {[%emt 0:00:37]} 39. Re7 {[%emt 0:05:15]} Rc8 {[%emt 0:01:14]} (39... Nxf3 {leads to mate.} 40. Qxd8) 40. Qb7 {[%emt 0:01:07]} Bxf5 {[%emt 0:00:20]} 41. gxf5 {[%emt 0:30:55]} Qg2# {[%emt 0:30:14] A cool game by Trunz.   Weighted Error Value: White=0.67/Black=0.14 (very precise)} 0-1

[Event "DFMM-LV 2023"]
[Site "Braunfels"]
[Date "2023.06.09"]
[Round "1.8"]
[White "Moeller, Lisa-Marie"]
[Black "Albayrak, Aylin"]
[Result "1/2-1/2"]
[Annotator "NA RC COMBH"]
[ECO "B30"]
[WhiteElo "1897"]
[BlackElo "1690"]
[PlyCount "130"]
[EventDate "2023.06.09"]
[EventType "team-tourn"]
[EventCountry "GER"]
[SourceTitle "playchess.com"]
[Source "ChessBase"]
[SourceQuality "1"]
[TimeControl "40/5400+30:1800+30"]

1. e4 {[%emt 0:00:02]} c5 {[%emt 0:00:05]} 2. Nf3 {[%emt 0:00:05]} Nc6 {[%emt 0:00:04]} 3. Bb5 {[%emt 0:00:04]} Nd4 {[%emt 0:00:22]} 4. Nxd4 {[%emt 0:00:09]} cxd4 {[%emt 0:00:02]} 5. O-O {[%emt 0:00:41]} e5 {[%emt 0:01:24]} 6. d3 {[%emt 0:00:59]} Nf6 {[%emt 0:00:30]} 7. f4 {[%emt 0:02:19]} Qa5 {[%emt 0:01:44]} 8. fxe5 {[%emt 0:05:07]} Nxe4 {[%emt 0:00:41]} 9. Bc4 {[%emt 0:13:12]} d5 {[%emt 0:01:08]} 10. Bb3 {[%emt 0:00:56]} Nc5 {[%emt 0:00:12]} 11. Bxd5 {[%emt 0:00:42]} Be6 {[%emt 0:00:41]} 12. Qf3 {[%emt 0:04:56]} Qc7 {[%emt 0:02:32]} 13. Bxe6 {[%emt 0:08:08]} Nxe6 {[%emt 0:00:32]} 14. Nd2 {[%emt 0:02:13]} Bc5 {[%emt 0:01:11]} 15. Ne4 {[%emt 0:05:10]} O-O {[%emt 0:01:42]} 16. Qf5 {[%emt 0:07:10]} Be7 {[%emt 0:05:19]} 17. Rf3 {[%emt 0:06:47]} Rad8 {[%emt 0:06:11]} 18. Rh3 {[%emt 0:05:30]} g6 {[%emt 0:01:21]} 19. Nf6+ {[%emt 0:00:38]} Bxf6 {[%emt 0:00:10]} 20. Qxf6 {[%emt 0:00:07]} Rd5 {[%emt 0:04:33]} 21. Bh6 {[%emt 0:07:07]} Re8 {[%emt 0:02:16]} 22. Rf1 {[%emt 0:05:26]} Qe7 {[%emt 0:04:15]} 23. Rhf3 {[%emt 0:04:14]} Rd7 {[%emt 0:06:26]} 24. Qxe7 {[%emt 0:05:53]} Rdxe7 {[%emt 0:03:09]} 25. Bf4 {[%emt 0:01:12]} Rc7 {[%emt 0:02:10]} 26. R1f2 {[%emt 0:01:49]} Nxf4 {[%emt 0:02:39]} 27. Rxf4 {[%emt 0:00:03]} Rxe5 {[%emt 0:00:13]} 28. Rxd4 {[%emt 0:00:54]} Re1+ {[%emt 0:00:26]} 29. Rf1 {[%emt 0:00:01]} Rxf1+ {[%emt 0:00:21]} 30. Kxf1 {[%emt 0:00:01]} Rxc2 {[%emt 0:00:12]} 31. Rb4 {[%emt 0:02:23]} b6 {[%emt 0:03:33]} 32. d4 {[%emt 0:03:53]} Kf8 {[%emt 0:00:26]} 33. Ra4 {[%emt 0:03:01]} a5 {[%emt 0:01:33]} 34. b4 {[%emt 0:01:25]} Rc4 {[%emt 0:00:09]} 35. Ra3 {[%emt 0:02:33]} Rxb4 {[%emt 0:00:57]} 36. Rd3 {[%emt 0:00:04]} Ke7 {[%emt 0:00:53]} 37. Rd2 {[%emt 0:00:34]} Kd6 {[%emt 0:00:46]} 38. Ke2 {[%emt 0:00:21]} Kd5 {[%emt 0:01:02]} 39. Ke3 {[%emt 0:00:20]} Ra4 {[%emt 0:00:32]} 40. g3 {[%emt 0:02:41]} f5 {[%emt 0:01:56]} 41. h3 {[%emt 0:31:27]} g5 {[%emt 0:32:05]} 42. Rb2 {[%emt 0:00:00]} Ra3+ {[%emt 0:00:00]} 43. Kf2 {[%emt 0:00:00]} Kxd4 {[%emt 0:00:00]} 44. Rxb6 {[%emt 0:00:00]} Rxa2+ {[%emt 0:00:00]} 45. Kf3 {[%emt 0:00:00]} Ra3+ {[%emt 0:00:00]} 46. Kf2 {[%emt 0:00:00]} h5 {[%emt 0:00:00]} 47. Rh6 {[%emt 0:00:00]} Ra2+ {[%emt 0:00:00]} 48. Kf3 {[%emt 0:00:00]} g4+ {[%emt 0:00:00]} 49. hxg4 {[%emt 0:00:00]} hxg4+ {[%emt 0:00:00]} 50. Kf4 {[%emt 0:00:00]} Rf2+ {[%emt 0:00:00]} 51. Kg5 {[%emt 0:00:00]} Ke5 {[%emt 0:00:00]} 52. Ra6 {[%emt 0:00:00]} Ra2 {[%emt 0:00:00]} 53. Rf6 {[%emt 0:00:00]} Rf2 {[%emt 0:00:00]} 54. Ra6 {[%emt 0:00:00]} Ke4 {[%emt 0:00:00]} 55. Rxa5 {[%emt 0:00:00]} Rf3 {[%emt 0:00:00]} 56. Ra4+ {[%emt 0:00:00]} Ke3 {[%emt 0:00:00]} 57. Kh4 {[%emt 0:00:00]} Kf2 {[%emt 0:00:00]} 58. Ra2+ {[%emt 0:00:00]} Kg1 {[%emt 0:00:00]} 59. Ra1+ {[%emt 0:00:00]} Rf1 {[%emt 0:00:00]} 60. Ra2 {[%emt 0:00:00]} Rf2 {[%emt 0:00:00]} 61. Ra3 {[%emt 0:00:06]} Kg2 {[%emt 0:00:00]} 62. Rb3 {[%emt 0:00:28]} Kh1 {[%emt 0:00:00]} 63. Ra3 {[%emt 0:01:52]} Kg2 {[%emt 0:00:00]} 64. Rb3 {[%emt 0:00:13]} Re2 {[%emt 0:02:24]} 65. Rb5 {[%emt 0:01:46]} Rf2 {[%emt 0:01:20]} 1/2-1/2

[Event "DFMM-LV 2023"]
[Site "Braunfels"]
[Date "2023.06.09"]
[Round "1.9"]
[White "Li, Zhuoling"]
[Black "Rath, Alina"]
[Result "1-0"]
[Annotator "TA"]
[ECO "B65"]
[WhiteElo "2216"]
[BlackElo "2051"]
[PlyCount "55"]
[EventDate "2023.06.09"]
[EventType "team-tourn"]
[EventCountry "GER"]
[SourceTitle "playchess.com"]
[Source "ChessBase"]
[SourceQuality "1"]
[TimeControl "40/5400+30:1800+30"]

{[%evp 21,55,33,20,26,39,30,124,87,137,120,120,38,35,29,243,251,247,241,233,233,322,310,440,433,445,439,429,433,460,463,454,444,434,436,434,418]} 1. e4 {[%emt 0:00:04]} c5 {[%emt 0:00:09]} 2. Nf3 {[%emt 0:00:04]} d6 {[%emt 0:00:09]} 3. d4 {[%emt 0:00:04]} cxd4 {[%emt 0:00:11]} 4. Nxd4 {[%emt 0:00:05]} Nf6 {[%emt 0:00:13]} 5. Nc3 {[%emt 0:00:03]} Nc6 {[%emt 0:00:21]} 6. Bg5 {[%emt 0:00:05]} e6 {[%emt 0:00:17]} 7. Qd2 {[%emt 0:00:05]} Be7 {[%emt 0:00:22]} 8. O-O-O {[%emt 0:00:40]} O-O {[%emt 0:00:33]} 9. f4 {[%emt 0:00:17]} Nxd4 {[%emt 0:01:51]} 10. Qxd4 {[%emt 0:00:05]} Qa5 {[%emt 0:00:20]} 11. Kb1 {[%emt 0:00:06]} Rd8 {[%emt 0:01:29]} 12. h4 {[%emt 0:00:51] B65: Sicilian: Richter-Rauzer: 7...Be7 8 0-0-0 0-0 9 f4 Nxd4.} h6 {[%emt 0:06:42]} 13. Qe3 {[%emt 0:02:06][%cal Of1d3]} a6 {[%emt 0:06:23] [#]} (13... hxg5 $2 14. hxg5 g6 15. Qh3 $18 (15. gxf6 Bxf6 16. Nb5 Qb6 $16)) (13... Bd7 $11 {keeps the balance.}) 14. Be2 $1 {[%emt 0:05:33][%cal Oe3g3] [#] White is better.} Kf8 $146 {[%emt 0:10:43]} (14... hxg5 $2 15. hxg5 $18) (14... Qc7 $142) (14... Qc5 15. Qxc5) ({Predecessor:} 14... Rd7 15. f5 Qc5 16. fxe6 fxe6 17. Qg3 Kh8 18. Be3 Qa5 19. Qf2 Bd8 20. g4 b5 {1-0 Comp Gandalf-Blokhuis,J (2180) The Hague AEGON 1997 (5)}) 15. e5 $16 {[%emt 0:04:44]} ({Of course not} 15. Bxf6 $6 Bxf6 16. g4 Bd7 $11) 15... dxe5 {[%emt 0:05:19]} 16. fxe5 {[%emt 0:03:49]} (16. Bxh6 $16 {[%cal Of4e5]} Rxd1+ 17. Rxd1) 16... Rxd1+ $1 $14 {[%emt 0:03:45]} 17. Bxd1 {[%emt 0:02:23]} Ng8 {[%emt 0:14:45] This costs Black the game.} ({But not} 17... hxg5 18. exf6 Bxf6 19. hxg5 Bxc3 20. bxc3 $16) (17... Nd5 $1 $11 {and Black has nothing to worry.} 18. Nxd5 exd5) 18. Bxe7+ $1 $18 {[%emt 0:15:48]} Nxe7 {[%emt 0:00:16]} 19. Bh5 {[%emt 0:03:49] aiming for Qf4.} Nc6 {[%emt 0:10:46]} 20. Rf1 {[%emt 0:18:42]} Nxe5 {[%emt 0:03:18]} 21. Bxf7 {[%emt 0:03:22][%cal Oc3d5]} Nxf7 {[%emt 0:04:52]} (21... Ke7 {might work better.} 22. Bh5 Bd7) 22. Qf4 {[%emt 0:00:05][%csl Gf1][%cal Rf4f7] White is clearly winning.} Qh5 {[%emt 0:02:19] And now ...e5 would win.} 23. g4 $1 {[%emt 0:01:28]} Qg6 {[%emt 0:00:38][%cal Oe6e5] [#] Hoping for ...e5!} 24. Qc7 {[%emt 0:00:36][%cal Rc7d8]} Kg8 {[%emt 0:05:01][%cal Og6g4]} (24... Ke8 $2 25. h5) 25. h5 {[%emt 0:00:07]} Qxg4 {[%emt 0:00:32]} 26. Qxf7+ {[%emt 0:00:07]} Kh7 {[%emt 0:01:08]} 27. Rd1 {[%emt 0:10:35] Rd8 would kill now.} e5 {[%emt 0:17:12] [#]} 28. Rd8 $1 {[%emt 0:01:39] Weighted Error Value: White=0.09 (flawless) /Black=0.45} 1-0

[Event "DFMM-LV 2023"]
[Site "Braunfels"]
[Date "2023.06.09"]
[Round "1.10"]
[White "Skogvall, Martina"]
[Black "Meier, Annemarie"]
[Result "0-1"]
[Annotator "TA"]
[ECO "B33"]
[WhiteElo "1979"]
[BlackElo "2258"]
[PlyCount "56"]
[EventDate "2023.06.09"]
[EventType "team-tourn"]
[EventCountry "GER"]
[SourceTitle "playchess.com"]
[Source "ChessBase"]
[SourceQuality "1"]
[TimeControl "40/5400+30:1800+30"]

{[%evp 24,56,14,14,12,1,20,-27,12,-30,-30,-44,0,0,0,-11,-10,-167,-197,-185,-179,-156,-70,-354,-353,-369,-371,-366,-364,-434,-429,-437,-402,-552,-539]} 1. e4 {[%emt 0:00:03]} c5 {[%emt 0:00:13]} 2. Nf3 {[%emt 0:00:06]} Nc6 {[%emt 0:00:14]} 3. d4 {[%emt 0:00:04]} cxd4 {[%emt 1:31:33]} 4. Nxd4 {[%emt 1:32:17]} Qb6 {[%emt 0:00:00]} 5. Nb3 {[%emt 0:00:00]} Nf6 {[%emt 0:00:00]} 6. Nc3 {[%emt 0:00:00]} e6 {[%emt 0:00:00]} 7. Be3 {[%emt 0:00:00]} Qc7 {[%emt 0:00:00]} 8. a3 {[%emt 0:00:00]} d6 {[%emt 0:00:00]} 9. Be2 {[%emt 0:00:00]} a6 {[%emt 0:00:00]} 10. O-O {[%emt 0:00:00]} Be7 {[%emt 0:00:00]} 11. f4 {[%emt 0:00:00]} b5 {[%emt 0:00:00]} 12. Bf3 {[%emt 0:00:00]} Bb7 {[%emt 0:00:00]} 13. Qe1 {[%emt 0:00:00]} O-O {[%emt 0:00:00] B33: Sicilian: Pelikan and Sveshnikov Variations.} 14. Qg3 {[%emt 0:00:00]} b4 {[%emt 0:00:00]} 15. Na4 {[%emt 0:00:00]} (15. axb4 {was preferrable.} Nxb4 16. Rf2) 15... Nd7 {[%emt 0:00:00] [#] Black has an edge.} 16. f5 $146 {[%emt 0:00:00]} ({Predecessor:} 16. axb4 Nxb4 17. c3 Nc2 18. Bd4 e5 19. fxe5 dxe5 20. Ra2 Qc4 21. Nc1 Nxd4 22. cxd4 Qxd4+ {0-1 Langer,M (2302)-Annakov,B (2566) Ken Smith Memorial op 2001 (1)}) 16... exf5 {[%emt 0:00:00]} 17. exf5 {[%emt 0:00:00][%cal Ob3c5]} Nce5 {[%emt 0:00:00]} 18. Bxb7 {[%emt 0:00:00]} Qxb7 {[%emt 0:00:00]} 19. Bh6 {[%emt 0:00:00][%csl Gh6][%cal Rg3g7]} Bf6 {[%emt 0:00:00]} 20. Bxg7 $2 {[%emt 0:00:00]} Bxg7 $19 {[%emt 0:00:00]} 21. f6 {[%emt 0:00:00] [#]} Nxf6 $1 {[%emt 0:00:00][%mdl 512]} 22. Rxf6 {[%emt 0:00:00]} Rac8 {[%emt 0:00:00] Dancing on a razor blade.} (22... Kh8 $17 23. Rff1 (23. Rxd6 bxa3 24. Rxa3 Nc4 $17) 23... Rg8) 23. Nd4 $2 {[%emt 0:00:00][%mdl 8192]} ({Better is} 23. axb4 $15 Rxc2 24. Nd4) 23... Qa7 {[%emt 0:00:00]} 24. c3 {[%emt 0:00:00]} bxc3 {[%emt 0:00:00]} 25. bxc3 {[%emt 0:00:00]} Rc4 {[%emt 0:00:00] [#] And now ...Rxd4 would win.} 26. Rxd6 {[%emt 0:00:42]} Rxa4 {[%emt 0:00:00]} 27. Kh1 {[%emt 0:00:15]} Ng6 {[%emt 0:00:00]} 28. h4 {[%emt 0:06:40]} Qc5 {[%emt 0:00:00] Weighted Error Value: White=0.74/Black=0.22 (precise)} 0-1

[Event "DFMM-LV 2023"]
[Site "Braunfels"]
[Date "2023.06.09"]
[Round "1.11"]
[White "Kostak, Tetyana"]
[Black "Bazzazi, Elnaz"]
[Result "1-0"]
[Annotator "TA"]
[ECO "C50"]
[WhiteElo "2117"]
[BlackElo "1827"]
[PlyCount "77"]
[EventDate "2023.06.09"]
[EventType "team-tourn"]
[EventCountry "GER"]
[SourceTitle "playchess.com"]
[Source "ChessBase"]
[SourceQuality "1"]
[TimeControl "40/5400+30:1800+30"]

{[%evp 13,77,-35,-35,-59,-44,-96,-50,-116,-18,-21,0,-72,133,139,122,12,128,15,10,14,16,12,16,17,6,0,0,0,0,-10,64,66,101,90,86,36,43,45,40,39,66,-22,43,0,0,0,0,0,0,0,0,0,0,-3,0,0,27,0,678,658,716,705,721,729,756,739]} 1. e4 {[%emt 0:00:07]} e5 {[%emt 0:00:05]} 2. Nf3 {[%emt 0:00:10]} Nc6 {[%emt 0:00:08]} 3. Bc4 {[%emt 0:00:13]} Bc5 {[%emt 0:00:16]} 4. O-O {[%emt 0:00:50]} Nf6 {[%emt 0:00:29]} 5. d4 {[%emt 0:00:29]} Bxd4 {[%emt 0:03:22]} 6. Nxd4 {[%emt 0:00:43]} Nxd4 {[%emt 0:00:10]} 7. f4 {[%emt 0:01:06]} d6 $1 {[%emt 0:03:48][%cal Bd7d6,Bd6e5][%mdl 32]} 8. fxe5 {[%emt 0:02:54] C50: Hungarian Defence and Giuoco Pianissimo.} dxe5 {[%emt 0:03:16]} 9. c3 {[%emt 0:11:18] [#]} (9. Bg5 $15) 9... Be6 {[%emt 0:03:02] [#]} (9... Bg4 $1 $17 {[%cal Rg4d1]} 10. Qa4+ Bd7) 10. Nd2 $146 {[%emt 0:04:17]} (10. Na3 $15 Nc6 11. Qf3) ({Predecessor:} 10. Bxe6 Nxe6 11. Qxd8+ Rxd8 12. Nd2 Rd3 13. Nc4 Ng4 14. a4 f6 15. h3 Nh6 16. Bxh6 gxh6 17. Rxf6 {½-½ Schuelke,R (995)-Halas,N (1109) GER-ch U10 Girls 2019 (6)}) 10... Bg4 {[%emt 0:07:45]} (10... Qd7 $17 {...Bg4 would be deadly.} 11. Kh1 (11. cxd4 Qxd4+ 12. Kh1 Bxc4 $17) 11... Nc6) 11. Qa4+ $11 {[%emt 0:05:10]} Bd7 {[%emt 0:00:18]} (11... Nc6 {simplifies} 12. Nb3 a6 13. Bd5 Bd7) 12. Qa5 {[%emt 0:03:43]} (12. Qb4 $11 {keeps the balance.} a5 13. Qc5 (13. Qxb7 $2 {is the wrong capture.} Bc6 $19)) 12... Nc2 $2 {[%emt 0:05:32] Excellent horsemanship.} (12... Nc6 $17 {keeps the pressure on.} 13. Qa3 Qe7) 13. Qxe5+ $16 {[%emt 0:02:28]} Qe7 {[%emt 0:01:15]} 14. Qxe7+ {[%emt 0:01:40]} Kxe7 {[%emt 0:00:10]} 15. Rb1 {[%emt 0:00:09]} (15. e5 $1 $16 {[%cal Re5f6]} Nxa1 16. exf6+ gxf6 17. b3) 15... Ne3 $11 {[%emt 0:03:41] [#]} 16. e5 $1 {[%emt 0:06:11]} Nfd5 {[%emt 0:01:17] [#]} 17. Bxd5 $1 {[%emt 0:01:03]} Nxd5 {[%emt 0:00:47][%cal Be3d5,Bd5b4,Bb4d3][%mdl 32]} 18. Ne4 $36 {[%emt 0:00:28][%cal Bd2e4,Be4g3,Bg3f5][%mdl 2080] White fights for an advantage.} h6 {[%emt 0:00:57]} 19. c4 {[%emt 0:05:27]} Nb4 {[%emt 0:04:28]} 20. Bd2 {[%emt 0:03:11][%cal Bc1d2,Bd2c3,Bc3b2,Bb2g7][%mdl 32]} Nd3 {[%emt 0:03:39]} 21. Bc3 {[%emt 0:00:38] Black must now prevent Rbd1.} Bc6 {[%emt 0:00:14]} (21... Be6 $11) 22. Ng3 $14 {[%emt 0:00:34]} Rhe8 {[%emt 0:01:58]} 23. Rbd1 {[%emt 0:08:00]} Nc5 {[%emt 0:09:08]} 24. b4 {[%emt 0:04:34] White is more active. Black is weak on the dark squares} (24. e6 $16 f6 25. Nf5+ (25. Bb4 b6 $16) 25... Kf8 26. Bb4) 24... Ne4 {[%emt 0:03:42]} 25. Nf5+ {[%emt 0:00:29]} Kf8 {[%emt 0:00:55]} 26. Bb2 {[%emt 0:00:29] Strongly threatening b5.} a6 {[%emt 0:05:02]} 27. h3 {[%emt 0:07:46]} ({Better is} 27. e6 $14 f6 28. e7+ Kf7 29. Rde1) 27... Rad8 {[%emt 0:09:57]} (27... Ng5 $1 $11) 28. e6 {[%emt 0:01:33]} Rxd1 {[%emt 0:02:14]} 29. Bxg7+ {[%emt 0:03:36]} Kg8 {[%emt 0:00:21] aiming for ...Rxf1+.} 30. exf7+ {[%emt 0:00:41]} (30. Rxd1 $2 fxe6 31. b5 axb5 32. cxb5 exf5 $19) 30... Kxf7 {[%emt 0:00:59]} 31. Rxd1 {[%emt 0:00:14]} Kg6 {[%emt 0:03:07]} 32. g4 {[%emt 0:00:16]} (32. Nxh6 $2 {perishes.} Kxg7 33. Nf5+ Kg6 34. Nh4+ Kf6 35. Rf1+ Kg7 36. Nf5+ Kg6 37. Nh4+ Kh6 38. Nf5+ Kg5 $19) 32... h5 {[%emt 0:04:10]} 33. Bd4 {[%emt 0:06:41]} hxg4 {[%emt 0:00:59]} 34. hxg4 {[%emt 0:00:13]} Ng5 {[%emt 0:00:33]} 35. Kf2 {[%emt 0:08:27]} (35. Kh2 $5) 35... Bf3 $2 {[%emt 0:00:52][%mdl 8192]} (35... Ne4+ $11 36. Kf1 Kg5) 36. Nh4+ $18 {[%emt 0:00:33] White is clearly winning.} Kh7 {[%emt 0:00:25]} 37. Nxf3 {[%emt 0:00:15]} Rf8 {[%emt 0:00:22]} 38. Rd3 {[%emt 0:00:15]} Ne6 {[%emt 0:01:34]} 39. Be3 {[%emt 0:01:33] Weighted Error Value: White=0.24 (precise) /Black=0.62} 1-0